fUST/lending_fUST_20260228
["ID","MTS","AMOUNT","RATE_DAILY","PERIOD"]
[406867660,1772253046769,-1548.07,0.00013698,2]
[406867662,1772253046779,-1548.07,0.00013698,2]
[406867664,1772253046788,-501.05601004,0.00013699,2]
[406867666,1772253046798,-407.07054453,0.00013699,2]
[406867668,1772253046809,-500.58437146,0.00013699,2]
[406867670,1772253046818,-501.63625164,0.00013699,2]
[406867672,1772253046827,-335.38632226,0.00013699,2]
[406867674,1772253046836,-500.0,0.00013699,2]
[406867676,1772253046845,-500.0,0.0001372,2]
[406867678,1772253046858,-1614.6514059,0.00013721,2]
[406867680,1772253046867,-5684.0984016,0.00013721,2]
[406867682,1772253046876,-1548.07,0.0001382,2]
[406867685,1772253046887,-344.64261261,0.00013821,2]
[406867687,1772253046896,-1000.0,0.00013821,2]
[406867689,1772253046905,-1000.0,0.00013821,2]
[406867691,1772253046913,-1000.0,0.00013821,2]
[406867693,1772253046923,-1000.0,0.00013821,2]
[406867694,1772253046932,-1000.0,0.00013821,2]
[406867697,1772253046941,-976.27370391,0.00013821,2]
[406867699,1772253046951,-179.75756135,0.00013821,2]
[406867700,1772253046960,-151.0,0.00013821,2]
[406867702,1772253046970,-151.0,0.00013821,2]
[406867704,1772253046979,-151.0,0.00013821,2]
[406867707,1772253046988,-151.0,0.00013821,2]
[406867708,1772253046997,-151.0,0.00013821,2]
[406867710,1772253047006,-151.0,0.00013821,2]
[406867712,1772253047015,-151.0,0.00013821,2]
[406867714,1772253047024,-204.88980391,0.00013821,2]
[406867716,1772253047033,-177.0,0.00013823,2]
[406867718,1772253047043,-1868.53256345,0.00014003,2]
[406867720,1772253047053,-500.0,0.0001417,2]
[406867722,1772253047062,-500.0,0.0001417,2]
[406867724,1772253047071,-533.65751543,0.0001417,2]
[406867726,1772253047081,-500.0,0.0001417,2]
[406867728,1772253047090,-250.0,0.0001417,2]
[406867730,1772253047099,-250.0,0.0001417,2]
[406867732,1772253047108,-500.0,0.0001417,2]
[406867734,1772253047117,-250.0,0.0001417,2]
[406867736,1772253047126,-250.0,0.0001417,2]
[406867738,1772253047135,-500.0,0.0001417,2]
[406867740,1772253047144,-250.0,0.0001417,2]
[406867742,1772253047153,-250.0,0.0001417,2]
[406867744,1772253047162,-500.0,0.0001417,2]
[406867746,1772253047172,-250.0,0.0001417,2]
[406867748,1772253047181,-31.42420098,0.0001417,2]
[406867751,1772253047197,-468.57579902,0.0001417,2]
[406867753,1772253047206,-250.0,0.0001417,2]
[406867755,1772253047215,-250.0,0.0001417,2]
[406867757,1772253047224,-500.0,0.0001417,2]
[406867759,1772253047233,-250.0,0.0001417,2]
[406867761,1772253047242,-200.52855091,0.0001417,2]
[406867763,1772253047251,-250.0,0.0001417,2]
[406867765,1772253047260,-500.0,0.0001417,2]
[406867767,1772253047269,-250.0,0.0001417,2]
[406867769,1772253047279,-500.0,0.0001417,2]
[406867771,1772253047290,-250.0,0.0001417,2]
[406867773,1772253047300,-500.0,0.0001417,2]
[406867775,1772253047311,-250.0,0.0001417,2]
[406867777,1772253047321,-500.0,0.0001417,2]
[406867779,1772253047331,-250.0,0.0001417,2]
[406867781,1772253047340,-500.0,0.0001417,2]
[406867783,1772253047350,-250.0,0.0001417,2]
[406867785,1772253047359,-500.0,0.0001417,2]
[406867787,1772253047368,-250.0,0.0001417,2]
[406867789,1772253047377,-250.0,0.0001417,2]
[406867791,1772253047386,-250.0,0.0001417,2]
[406867793,1772253047395,-500.0,0.0001417,2]
[406867795,1772253047404,-514.90090341,0.0001417,2]
[406867797,1772253047413,-164.74578131,0.0001417,2]
[406867799,1772253047422,-194.72792766,0.0001417,2]
[406867801,1772253047431,-1988.9708855,0.0001417,2]
[406867803,1772253047441,-2579.17784983,0.0001417,2]
[406867805,1772253047449,-644.79446246,0.0001417,2]
[406867807,1772253047459,-194.72792766,0.0001417,2]
[406867809,1772253047467,-201.93286099,0.0001417,2]
[406867811,1772253047477,-209.40437684,0.0001417,2]
[406867813,1772253047486,-217.15233878,0.0001417,2]
[406867815,1772253047497,-542.10625385,0.0001417,2]
[406867817,1772253047506,-225.18697532,0.0001417,2]
[406867819,1772253047517,-233.51889341,0.0001417,2]
[406867821,1772253047526,-242.15909246,0.0001417,2]
[406867823,1772253047535,-250.0,0.0001417,2]
[406867825,1772253047545,-251.11897888,0.0001417,2]
[406867827,1772253047556,-250.0,0.0001417,2]
[406867829,1772253047565,-260.4103811,0.0001417,2]
[406867831,1772253047574,-250.0,0.0001417,2]
[406867833,1772253047583,-270.0455652,0.0001417,2]
[406867835,1772253047592,-250.0,0.0001417,2]
[406867837,1772253047601,-250.0,0.0001417,2]
[406867839,1772253047610,-280.03725112,0.0001417,2]
[406867840,1772253047619,-136.68241837,0.0001417,2]
[406867843,1772253047631,-71.0385288,0.0001417,2]
[406867845,1772253047640,-250.0,0.0001417,2]
[406867847,1772253047649,-290.39862941,0.0001417,2]
[406867849,1772253047658,-333.42544439,0.0001417,2]
[406867851,1772253047667,-301.1433787,0.0001417,2]
[406867853,1772253047675,-158.16042367,0.0001417,2]
[406867855,1772253047685,-1000.0,0.00014247,2]
[406867857,1772253047694,-169.011539,0.00014606,2]
[406867859,1772253047703,-1548.07,0.00014612,2]
[406867860,1772253047712,-210.56803231,0.00014612,2]
[406867863,1772253047721,-600.0,0.00014655,2]
[406867865,1772253047731,-2674.60743027,0.00014718,2]
[406867866,1772253047741,-668.65185758,0.00014718,2]
[406867868,1772253047750,-1868.53256345,0.00014758,2]
[406867871,1772253047760,-1500.0,0.00014795,2]
[406867872,1772253047770,-168.0,0.00014813,2]
[406867874,1772253047779,-168.0,0.0001482,2]
[406867876,1772253047788,-168.0,0.00014824,2]
[406867878,1772253047797,-168.0,0.00014857,2]
[406867880,1772253047807,-168.0,0.00014911,2]
[406867882,1772253047816,-546.49305356,0.00014916,2]
[406867884,1772253047825,-1548.07,0.00014916,2]
[406867886,1772253047835,-168.0,0.00014928,2]
[406867888,1772253047844,-168.0,0.0001497,2]
[406867890,1772253047857,-168.0,0.00014977,2]
[406867892,1772253047866,-168.0,0.00014983,2]
[406867894,1772253047875,-281.0,0.00015187,2]
[406867896,1772253047886,-2773.56790519,0.00015266,2]
[406867898,1772253047895,-2000.0,0.00015342,2]
[406867900,1772253047905,-264.0,0.00015359,2]
[406867902,1772253047914,-281.0,0.00015452,2]
[406867905,1772253047926,-1268.2937866,0.00015464,2]
[406867906,1772253047936,-1868.53256345,0.00015512,2]
[406867908,1772253047945,-188.45813883,0.00015539,2]
[406867910,1772253047954,-165.519,0.0001557,2]
[406867912,1772253047964,-368.0,0.00015617,2]
[406867914,1772253047974,-368.0,0.00015701,2]
[406867916,1772253047983,-281.0,0.0001571,2]
[406867918,1772253047992,-368.0,0.00015721,2]
[406867920,1772253048002,-389.11370661,0.00015782,2]
[406867922,1772253048011,-444.70137898,0.00015782,2]
[406867924,1772253048020,-694.15105875,0.00015782,2]
[406867926,1772253048029,-286.37083903,0.00015782,2]
[406867928,1772253048039,-326.95367793,0.00015782,2]
[406867930,1772253048049,-164.55719009,0.000158,2]
[406867932,1772253048059,-323.2140833,0.000158,2]
[406867934,1772253048068,-2876.18991768,0.00015814,2]
[406867936,1772253048078,-204.0,0.00015823,2]
[406867938,1772253048087,-435.0,0.0001584,2]
[406867940,1772253048096,-282.9945957,0.00015853,2]
[406867942,1772253048106,-368.0,0.00015861,2]
[406867944,1772253048115,-2500.0,0.0001589,2]
[406867946,1772253048124,-1548.07,0.00015898,2]
[406867948,1772253048133,-1734.15452792,0.000159,2]
[406867950,1772253048142,-151.0,0.000159,2]
[406867952,1772253048152,-168.90178381,0.000159,2]
[406867954,1772253048161,-368.0,0.00015933,2]
[406867956,1772253048170,-368.0,0.00015939,2]
[406867958,1772253048180,-351.0,0.00015944,2]
[406867960,1772253048189,-351.0,0.00015944,2]
[406867962,1772253048198,-351.0,0.00015944,2]
[406867964,1772253048208,-351.0,0.00015944,2]
[406867966,1772253048218,-351.0,0.00015944,2]
[406867968,1772253048227,-351.0,0.00015944,2]
[406867970,1772253048237,-351.0,0.00015944,2]
[406867972,1772253048246,-351.0,0.00015944,2]
[406867974,1772253048256,-351.0,0.00015944,2]
[406867976,1772253048265,-108.41849958,0.00015944,2]
[406868107,1772253325835,169.011541,7.076e-05,2]
[406868138,1772254231640,-602.25672863,0.00010848,2]
[406868140,1772254231651,-342.87757254,0.00010848,2]
[406868586,1772254237743,-4054.86569883,0.00010848,2]
[406868587,1772254237753,-1538.01353498,0.00010958,2]
[406868588,1772254237762,-5000.0,0.00011069,2]
[406868589,1772254237771,-577.0,0.00011181,2]
[406868590,1772254237780,-150.0,0.00011238,2]
[406868591,1772254237789,-3500.73,0.00012329,2]
[406868592,1772254237798,-2917.28,0.00012329,2]
[406868593,1772254237807,-2431.06,0.00012329,2]
[406868594,1772254237815,-2025.89,0.00012329,2]
[406868596,1772254237824,-1688.24,0.00012329,2]
[406868598,1772254237833,-1406.86,0.00012329,2]
[406868600,1772254237842,-1172.39,0.00012329,2]
[406868602,1772254237852,-976.99,0.00012329,2]
[406868604,1772254237860,-814.16,0.00012329,2]
[406868605,1772254237869,-678.46,0.00012329,2]
[406868607,1772254237878,-565.39,0.00012329,2]
[406868610,1772254237888,-8885.2,0.00013,2]
[406868612,1772254237897,-177.0,0.00013238,2]
[406868614,1772254237906,-500.0,0.00013273,2]
[406868616,1772254237915,-394.86936231,0.00013273,2]
[406868619,1772254237924,-500.0,0.00013273,2]
[406868621,1772254237933,-500.0,0.00013273,2]
[406868623,1772254237943,-157.75483838,0.0001339,2]
[406868625,1772254237953,-500.0,0.00013698,2]
[406868627,1772254237962,-3470.14,0.00013698,2]
[406868629,1772254237971,-500.0,0.00013698,2]
[406868631,1772254237980,-522.93844272,0.00013698,2]
[406868633,1772254237990,-500.0,0.00013698,2]
[406868635,1772254238000,-500.0,0.00013698,2]
[406868637,1772254238009,-500.0,0.00013698,2]
[406868639,1772254238019,-657.62,0.00013698,2]
[406868641,1772254238028,-687.94,0.00013698,2]
[406868643,1772254238036,-547.5720016,0.00013698,2]
[406868645,1772254238045,-793.52,0.00013698,2]
[406868647,1772254238055,-500.0,0.00013698,2]
[406868649,1772254238064,-500.0,0.00013698,2]
[406868651,1772254238073,-500.0,0.00013698,2]
[406868653,1772254238082,-500.0,0.00013698,2]
[406868655,1772254238092,-500.0,0.00013698,2]
[406868657,1772254238101,-572.25,0.00013698,2]
[406868659,1772254238111,-2245.33,0.00013698,2]
[406868661,1772254238120,-1184.13,0.00013698,2]
[406868663,1772254238129,-595.48,0.00013698,2]
[406868665,1772254238138,-500.0,0.00013698,2]
[406868667,1772254238148,-2863.3,0.00013698,2]
[406868669,1772254238157,-500.0,0.00013698,2]
[406868671,1772254238166,-248.64587205,0.00013698,2]
[406868673,1772254238175,-500.0,0.00013698,2]
[406868675,1772254238185,-977.9,0.00013698,2]
[406868677,1772254238195,-500.0,0.00013698,2]
[406868679,1772254238204,-500.0,0.00013698,2]
[406868680,1772254238213,-500.0,0.00013698,2]
[406868682,1772254238222,-500.0,0.00013698,2]
[406868684,1772254238231,-500.0,0.00013698,2]
[406868686,1772254238239,-500.0,0.00013698,2]
[406868688,1772254238248,-1215.38,0.00013698,2]
[406868690,1772254238258,-784.64,0.00013698,2]
[406868693,1772254238267,-500.0,0.00013698,2]
[406868695,1772254238277,-1765.65,0.00013698,2]
[406868696,1772254238286,-500.0,0.00013698,2]
[406868698,1772254238295,-500.0,0.00013698,2]
[406868700,1772254238305,-500.0,0.00013698,2]
[406868702,1772254238314,-500.0,0.00013698,2]
[406868704,1772254238323,-1128.33,0.00013698,2]
[406868706,1772254238333,-386.72289411,0.00013698,2]
[406868708,1772254238346,-500.0,0.00013698,2]
[406868710,1772254238355,-2959.99,0.00013698,2]
[406868712,1772254238365,-500.0,0.00013698,2]
[406868714,1772254238374,-500.0,0.00013698,2]
[406868716,1772254238385,-500.0,0.00013698,2]
[406868718,1772254238395,-500.0,0.00013698,2]
[406868720,1772254238404,-500.0,0.00013698,2]
[406868722,1772254238416,-605.16,0.00013698,2]
[406868724,1772254238425,-599.03,0.00013698,2]
[406868726,1772254238434,-564.43,0.00013698,2]
[406868728,1772254238444,-500.0,0.00013698,2]
[406868730,1772254238453,-1068.6,0.00013698,2]
[406868732,1772254238463,-500.0,0.00013698,2]
[406868734,1772254238472,-511.33901498,0.00013698,2]
[406868736,1772254238481,-1305.05,0.00013698,2]
[406868738,1772254238492,-721.3,0.00013698,2]
[406868740,1772254238501,-500.0,0.00013698,2]
[406868742,1772254238512,-626.17165876,0.00013698,2]
[406868745,1772254238522,-500.0,0.00013698,2]
[406868747,1772254238531,-500.0,0.00013698,2]
[406868749,1772254238540,-780.6,0.00013698,2]
[406868750,1772254238549,-500.0,0.00013698,2]
[406868752,1772254238558,-500.0,0.00013698,2]
[406868754,1772254238568,-500.0,0.00013698,2]
[406868756,1772254238577,-978.44,0.00013698,2]
[406868759,1772254238587,-500.0,0.00013698,2]
[406868760,1772254238596,-1575.17,0.00013698,2]
[406868762,1772254238606,-305.58660564,0.00013698,2]
[406868764,1772254238615,-500.0,0.00013698,2]
[406868766,1772254238624,-500.0,0.00013698,2]
[406868768,1772254238634,-500.0,0.00013698,2]
[406868770,1772254238643,-500.0,0.00013698,2]
[406868772,1772254238653,-1563.71,0.00013698,2]
[406868774,1772254238662,-500.0,0.00013698,2]
[406868776,1772254238671,-1096.55,0.00013698,2]
[406868778,1772254238680,-622.16,0.00013698,2]
[406868780,1772254238691,-500.0,0.00013698,2]
[406868782,1772254238702,-520.60475722,0.00013698,2]
[406868784,1772254238711,-883.41,0.00013698,2]
[406868786,1772254238720,-500.0,0.00013698,2]
[406868788,1772254238730,-746.2,0.00013698,2]
[406868790,1772254238740,-500.45726293,0.00013698,2]
[406868792,1772254238750,-500.0,0.00013698,2]
[406868794,1772254238759,-632.24892023,0.00013698,2]
[406868796,1772254238768,-1656.59,0.00013698,2]
[406868798,1772254238778,-504.1318616,0.00013698,2]
[406868800,1772254238787,-500.0,0.00013698,2]
[406868802,1772254238795,-500.0,0.00013698,2]
[406868804,1772254238805,-312.97411086,0.00013698,2]
[406868806,1772254238814,-516.42497321,0.00013698,2]
[406868808,1772254238823,-500.0,0.00013698,2]
[406868810,1772254238832,-500.0,0.00013698,2]
[406868812,1772254238841,-500.0,0.00013698,2]
[406868814,1772254238851,-500.0,0.00013698,2]
[406868816,1772254238860,-500.0,0.00013698,2]
[406868818,1772254238870,-500.0,0.00013698,2]
[406868820,1772254238879,-500.0,0.00013698,2]
[406868822,1772254238888,-500.0,0.00013698,2]
[406868824,1772254238899,-500.0,0.00013698,2]
[406868827,1772254238909,-500.0,0.00013698,2]
[406868829,1772254238918,-500.0,0.00013698,2]
[406868831,1772254238928,-500.0,0.00013698,2]
[406868833,1772254238937,-500.0,0.00013698,2]
[406868835,1772254238947,-500.0,0.00013698,2]
[406868837,1772254238956,-2734.3195435,0.00013699,2]
[406868839,1772254238965,-500.0,0.00013699,2]
[406868840,1772254238974,-934.26628176,0.00013721,2]
[406868843,1772254238984,-500.0,0.00013817,2]
[406868844,1772254238993,-500.0,0.00013817,2]
[406868846,1772254239002,-500.0,0.00013817,2]
[406868849,1772254239012,-500.0,0.00013817,2]
[406868850,1772254239021,-500.0,0.00013817,2]
[406868853,1772254239031,-500.0,0.00013817,2]
[406868855,1772254239040,-500.66418719,0.00013817,2]
[406868857,1772254239048,-500.0,0.00013817,2]
[406868858,1772254239057,-500.0,0.00013817,2]
[406868860,1772254239066,-500.0,0.00013817,2]
[406868862,1772254239075,-400.3788924,0.00013817,2]
[406868865,1772254239085,-500.0,0.00013817,2]
[406868867,1772254239094,-500.0,0.00013817,2]
[406868869,1772254239103,-500.0,0.00013817,2]
[406868871,1772254239113,-500.0,0.00013817,2]
[406868873,1772254239123,-500.0,0.00013817,2]
[406868875,1772254239132,-500.0,0.00013817,2]
[406868877,1772254239141,-500.0,0.00013817,2]
[406868879,1772254239151,-500.0,0.00013817,2]
[406868881,1772254239160,-500.0,0.00013817,2]
[406868883,1772254239169,-500.0,0.00013817,2]
[406868884,1772254239178,-500.0,0.00013817,2]
[406868886,1772254239187,-500.0,0.00013817,2]
[406868888,1772254239196,-500.0,0.00013817,2]
[406868890,1772254239206,-500.0,0.00013817,2]
[406868892,1772254239215,-500.0,0.00013817,2]
[406868894,1772254239224,-500.0,0.00013817,2]
[406868896,1772254239234,-633.60657547,0.00013817,2]
[406868898,1772254239244,-500.0,0.00013817,2]
[406868901,1772254239253,-500.0,0.00013817,2]
[406868903,1772254239263,-500.0,0.00013817,2]
[406868905,1772254239272,-500.0,0.00013817,2]
[406868907,1772254239281,-500.0,0.00013817,2]
[406868909,1772254239291,-500.0,0.00013817,2]
[406868911,1772254239301,-500.0,0.00013817,2]
[406868913,1772254239310,-500.0,0.00013817,2]
[406868915,1772254239319,-500.0,0.00013817,2]
[406868917,1772254239328,-500.0,0.00013817,2]
[406868919,1772254239339,-500.0,0.00013817,2]
[406868921,1772254239350,-500.0,0.00013817,2]
[406868923,1772254239362,-500.0,0.00013817,2]
[406868925,1772254239372,-326.03532937,0.00013817,2]
[406868926,1772254239381,-500.0,0.00013817,2]
[406868928,1772254239390,-500.0,0.00013817,2]
[406868930,1772254239400,-500.0,0.00013817,2]
[406868932,1772254239409,-500.0,0.00013817,2]
[406868934,1772254239419,-500.0,0.00013817,2]
[406868936,1772254239428,-500.0,0.00013817,2]
[406868938,1772254239438,-500.0,0.00013817,2]
[406868940,1772254239447,-500.0,0.00013817,2]
[406868942,1772254239456,-500.0,0.00013817,2]
[406868944,1772254239465,-500.0,0.00013817,2]
[406868946,1772254239474,-500.0,0.00013817,2]
[406868948,1772254239483,-500.0,0.00013817,2]
[406868950,1772254239492,-500.0,0.00013817,2]
[406868952,1772254239501,-500.0,0.00013817,2]
[406868954,1772254239511,-500.0,0.00013817,2]
[406868957,1772254239520,-500.0,0.00013817,2]
[406868959,1772254239529,-500.0,0.00013817,2]
[406868961,1772254239538,-500.0,0.00013817,2]
[406868963,1772254239547,-500.0,0.00013817,2]
[406868965,1772254239556,-500.0,0.00013817,2]
[406868967,1772254239566,-17.19024849,0.00013817,2]
[406868970,1772254239580,-482.80975151,0.00013817,2]
[406868972,1772254239589,-500.0,0.00013817,2]
[406868974,1772254239600,-219.11935118,0.00013817,2]
[406868976,1772254239609,-500.0,0.00013817,2]
[406868978,1772254239619,-286.46284285,0.00013817,2]
[406869318,1772254242945,-471.16,0.00012329,2]
[406869320,1772254242954,-500.0,0.00013698,2]
[406869322,1772254242963,-516.2828145,0.00013698,2]
[406869324,1772254242973,-539.03,0.00013698,2]
[406869326,1772254242982,-213.53715715,0.00013817,2]
[406869328,1772254242992,-500.0,0.00013817,2]
[406869330,1772254243001,-97.26139279,0.00013817,2]
[406869598,1772254245861,-1134.36,0.00013698,2]
[406869600,1772254245871,-770.27,0.00013698,2]
[406869601,1772254245880,-500.0,0.00013698,2]
[406869603,1772254245889,-402.73860721,0.00013817,2]
[406869605,1772254245899,-500.0,0.00013817,2]
[406869607,1772254245908,-500.0,0.00013817,2]
[406869609,1772254245917,-500.0,0.00013817,2]
[406869611,1772254245926,-500.0,0.00013817,2]
[406869613,1772254245935,-875.61,0.00013817,2]
[406869614,1772254245944,-500.0,0.00013817,2]
[406869615,1772254245954,-500.0,0.00013817,2]
[406869616,1772254245963,-500.0,0.00013817,2]
[406869617,1772254245973,-1064.44,0.00013817,2]
[406869618,1772254245982,-773.74,0.00013817,2]
[406869619,1772254245991,-500.0,0.00013817,2]
[406869620,1772254246000,-824.57,0.00013817,2]
[406869621,1772254246009,-500.0,0.00013817,2]
[406869622,1772254246018,-500.0,0.00013817,2]
[406869623,1772254246027,-568.76,0.00013817,2]
[406869624,1772254246037,-500.0,0.00013817,2]
[406869625,1772254246046,-500.0,0.00013817,2]
[406869626,1772254246055,-500.0,0.00013817,2]
[406869627,1772254246065,-500.0,0.00013817,2]
[406869628,1772254246074,-500.0,0.00013817,2]
[406869629,1772254246083,-1248.17,0.00013817,2]
[406869630,1772254246093,-500.0,0.00013817,2]
[406869631,1772254246103,-500.0,0.00013817,2]
[406869632,1772254246112,-978.07,0.00013817,2]
[406869633,1772254246121,-500.0,0.00013817,2]
[406869643,1772254246338,-500.0,0.00013817,2]
[406869645,1772254246357,-500.0,0.00013817,2]
[406869647,1772254246367,-500.0,0.00013817,2]
[406869649,1772254246376,-556.33,0.00013817,2]
[406869652,1772254246386,-500.0,0.00013817,2]
[406869654,1772254246396,-500.0,0.00013817,2]
[406869656,1772254246405,-500.0,0.00013817,2]
[406869658,1772254246415,-500.0,0.00013817,2]
[406869660,1772254246424,-982.71,0.00013817,2]
[406869662,1772254246434,-500.0,0.00013817,2]
[406869664,1772254246443,-528.8224381,0.00013817,2]
[406869666,1772254246452,-500.0,0.00013817,2]
[406869668,1772254246462,-692.4,0.00013817,2]
[406869669,1772254246471,-500.0,0.00013817,2]
[406869672,1772254246480,-500.0,0.00013817,2]
[406869674,1772254246489,-2310.47,0.00013817,2]
[406869675,1772254246499,-632.94879485,0.00013817,2]
[406869677,1772254246508,-586.66457624,0.00013817,2]
[406869680,1772254246520,-33.57542376,0.00013817,2]
[406869682,1772254246529,-500.0,0.00013817,2]
[406869684,1772254246538,-500.0,0.00013817,2]
[406869686,1772254246548,-597.01,0.00013817,2]
[406869688,1772254246558,-576.67,0.00013817,2]
[406869690,1772254246567,-512.85496579,0.00013817,2]
[406869692,1772254246576,-500.0,0.00013817,2]
[406869694,1772254246585,-500.0,0.00013817,2]
[406869696,1772254246595,-563.05,0.00013817,2]
[406869698,1772254246605,-500.0,0.00013817,2]
[406869700,1772254246615,-500.0,0.00013817,2]
[406869702,1772254246624,-1428.62,0.00013817,2]
[406869704,1772254246633,-500.0,0.00013817,2]
[406869706,1772254246642,-500.0,0.00013817,2]
[406869708,1772254246651,-309.91363844,0.00013817,2]
[406870223,1772254843156,-473.88127943,0.00011607,2]
[406870232,1772255287733,155.0,0.000158,120]
[406870233,1772255293147,222.0,0.000158,120]
[406870234,1772255305075,255.0,0.000158,120]
[406870256,1772255432466,-5000.0,0.00010928,2]
[406870257,1772255432475,-575.0,0.00011038,2]
[406870258,1772255432485,-150.0,0.00011094,2]
[406870259,1772255432494,-3706.16849423,0.00012111,2]
[406870260,1772255432521,-997.32222237,0.00012111,2]
[406870261,1772255432532,-1078.08916142,0.00012111,2]
[406870262,1772255432543,-276.36,0.00012111,2]
[406870263,1772255432554,-3942.06012198,0.00012111,2]
[406870264,1772255432563,-203.28,0.00012329,2]
[406870265,1772255432572,-358.75,0.00012329,2]
[406870266,1772255432582,-298.96,0.00012329,2]
[406870267,1772255432591,-249.13,0.00012329,2]
[406870268,1772255432600,-207.61,0.00012329,2]
[406870269,1772255432609,-173.01,0.00012329,2]
[406870270,1772255432618,-865.06,0.00012329,2]
[406870271,1772255432627,-210.6985462,0.00012557,2]
[406870272,1772255432637,-165.51919076,0.00012557,2]
[406870273,1772255432646,-177.0,0.00013094,2]
[406870274,1772255432655,-500.0,0.00013271,2]
[406870275,1772255432665,-500.0,0.00013271,2]
[406870276,1772255432674,-500.0,0.00013271,2]
[406870277,1772255432684,-500.0,0.00013271,2]
[406870278,1772255432693,-299.48172475,0.00013271,2]
[406870279,1772255432702,-255.0,0.00013272,2]
[406870280,1772255432712,-355.0,0.00013272,2]
[406870281,1772255432721,-455.0,0.00013272,2]
[406870282,1772255432731,-155.0,0.00013272,2]
[406870283,1772255432740,-501.72146614,0.00013273,2]
[406870284,1772255432749,-503.92944889,0.00013273,2]
[406870285,1772255432759,-500.92492572,0.00013273,2]
[406870286,1772255432768,-500.0,0.00013273,2]
[406870287,1772255432777,-478.68263652,0.00013273,2]
[406870345,1772255438084,-5000.0,0.00010819,2]
[406870347,1772255438093,-500.0,0.0001327,2]
[406870349,1772255438103,-500.0,0.0001327,2]
[406870351,1772255438112,-500.0,0.0001327,2]
[406870353,1772255438121,-500.0,0.0001327,2]
[406870355,1772255438130,-500.0,0.0001327,2]
[406870357,1772255438139,-500.0,0.0001327,2]
[406870359,1772255438148,-488.93098805,0.0001327,2]
[406870361,1772255438157,-403.73406394,0.0001327,2]
[406870363,1772255438166,-500.0,0.0001327,2]
[406870365,1772255438174,-500.0,0.0001327,2]
[406870366,1772255438183,-382.60353293,0.0001327,2]
[406870369,1772255438193,-21.31736348,0.00013273,2]
[406870371,1772255438202,-500.0,0.00013273,2]
[406870372,1772255438211,-155.0,0.00013549,2]
[406870374,1772255438220,-11884.66336038,0.000136,6]
[406870377,1772255438231,-13620.17391331,0.000136,6]
[406870930,1772255443386,-382.35591491,0.00012329,2]
[406870933,1772255443402,-658.83621924,0.00012329,2]
[406870935,1772255443414,-1522.895,0.00012329,2]
[406870984,1772255445972,-3877.07546754,0.00012329,2]
[406870985,1772255445982,-401.78714051,0.000136,6]
[406870986,1772255445993,-41300.21720895,0.000136,6]
[406870987,1772255446153,-794.41443861,0.000136,6]
[406870989,1772255900492,281.0946984,6.832e-05,2]
[406870990,1772256006569,150.21,9.5e-05,2]
[406870991,1772256007579,150.21,9.6e-05,2]
[406870992,1772256008543,150.21,9.6e-05,2]
[406870993,1772256009286,150.21,9.7e-05,2]
[406870994,1772256009856,150.21,9.7e-05,2]
[406870995,1772256010443,150.21,9.8e-05,2]
[406870996,1772256011516,150.21,9.9e-05,2]
[406870997,1772256012638,150.21,9.9e-05,2]